Cogmind - Beta 11 *** ADVENTURER MODE // 2022.04.19 @ 10:08:43 Player: niceypoo Result: Destroyed by G-47 Trooper with Particle Gun Performance ------------- Evolutions (2) 1000 Regions Visited (4) 800 Robots Destroyed (36) 180 Value Destroyed (718) 718 Prototype IDs (4) 80 Alien Tech Used (0) 0 Bonus (85) 85 TOTAL SCORE: 2863 Bonus ------- Follower Combat Kills 85 Cogmind --------- Core Integrity 0/550 Matter 234/300 Energy 25/100 System Corruption 1% Temperature Warm (163) Movement Flying (112) Ox1 Location -8/Materials Parts ------- > --- POWER (1) -------- (None) > --- PROPULSION (2) --- Cesium-ion Thruster Cesium-ion Thruster > --- UTILITY (6) ------ Improved Propulsion Shielding Improved Light Armor Plating Hacking Suite > --- WEAPON (2) ------- Heavy Particle Cannon Heavy Particle Cannon > --- INVENTORY (5) ---- (None) Peak State ------------ > --- POWER ------------ (None) > --- PROPULSION ------- Cesium-ion Thruster Cesium-ion Thruster > --- UTILITY ---------- Improved Propulsion Shielding Improved Light Armor Plating Hacking Suite > --- WEAPON ----------- Heavy Particle Cannon Heavy Particle Cannon > --- INVENTORY -------- (None) [Rating: 21] Favorites ----------- Power Ion Engine Engine Ion Engine Power Core Light Nuclear Core Propulsion Flight Unit Leg Aluminum Leg Wheel Compact Wheel Hover Unit Hover Unit Flight Unit Flight Unit Utility Structural Scanner Device Structural Scanner Storage Small Storage Unit Processor Signal Interpreter Hackware Hacking Suite Protection Utility Shielding Weapon Light Assault Rifle Energy Gun Medium Laser Energy Cannon Heavy Particle Cannon Ballistic Gun Light Assault Rifle Impact Weapon Maul Special Melee Weapon Datajack Build | -11 -10 -9 -9 -8 ------- Run | Scr Mat Mat Min Mat Slots Evolved 4 | . . 2 . 2 Power . | . . . . . Propulsion . | . . . . . Utility 4 | . . 2 . 2 Weapon . | . . . . . Parts Attached 59 | 8 20 . 16 15 Power 12 | 1 7 . 4 . Engine 11 | 1 7 . 3 . Core 1 | . . . 1 . Reactor . | . . . . . Propulsion 20 | 3 7 . 5 5 Treads . | . . . . . Leg 7 | 2 . . 2 3 Wheel 3 | 1 2 . . . Hover 2 | . 2 . . . Flight 8 | . 3 . 3 2 Utility 12 | 2 2 . 2 6 Device 5 | 1 1 . 1 2 Storage 1 | 1 . . . . Processor 1 | . 1 . . . Hackware 1 | . . . . 1 Protection 4 | . . . 1 3 Artifact . | . . . . . Weapon 15 | 2 4 . 5 4 Energy Gun 3 | 1 . . 1 1 Energy Cannon 2 | . . . . 2 Ballistic Gun 6 | 1 2 . 3 . Ballistic Cannon . | . . . . . Launcher . | . . . . . Special Weapon . | . . . . . Impact Weapon 2 | . . . 1 1 Slashing Weapon . | . . . . . Piercing Weapon . | . . . . . Special Melee Weapon 2 | . 2 . . . Unidentified Prototypes 2 | . 1 . . 1 Parts Lost 20 | . 3 . 8 9 Power 5 | . 1 . 3 1 Propulsion 7 | . 2 . 2 3 Utility 4 | . . . . 4 Weapon 4 | . . . 3 1 Highest Loss Streak 6 | . 3 . 2 6 To Critical Strikes . | . . . . . Average Slot Usage (%) 67 | . 89 66 63 55 Engine 8 | . 13 11 6 5 Core 1 | . . . 3 . Leg 5 | . 1 . 5 11 Wheel 1 | . 4 . . . Hover 3 | . 12 . . . Flight 8 | . 3 22 13 2 Device 13 | . 16 11 14 9 Processor 1 | . 7 . . . Hackware 2 | . . . . 8 Protection 8 | . . . 10 12 Energy Gun 2 | . 8 . . 2 Ballistic Gun 8 | . 17 11 8 . Special Melee Weapon 1 | . 1 11 . . Naked Turns . | . . . . . Heaviest Build 17 | 15 15 6 11 17 Greatest Support 35 | 20 20 8 20 35 Greatest Overweight (x) 2 | . 1 . 2 2 Average Overweight (x) . | . . . . . Largest Inventory Capacity 8 | 8 8 5 5 5 Average Capacity 5 | 7 5 5 5 5 Most Carried 8 | 8 7 3 5 3 Average Carried 2 | 6 3 2 1 . Final Capacity 8 | 8 5 5 5 5 Final Carried 6 | 6 2 3 1 . Class Distribution -------------------- 49% | Mutant 27% | Scavenger-Mutant 22% | Hacker-Mutant Dominant Class ---------------- Mutant | -10/Materials Scavenger-Mutant | -9/Materials Scavenger-Mutant | -9/Mines Hacker-Mutant | -8/Materials Resources | -11 -10 -9 -9 -8 ----------- Run | Scr Mat Mat Min Mat Matter Collected 851 | 331 193 . 253 74 Remotely 12 | . . . . 12 Salvage Created 1212 | 196 311 . 358 347 Parts 74 | 20 18 . 20 16 Haulers Intercepted . | . . . . . Recyclers Shooed . | . . . . . Parts Field Recycled . | . . . . . Retrieved Matter . | . . . . . Parts Self-Destructed . | . . . . . Prevented . | . . . . . Kills | -11 -10 -9 -9 -8 ------- Run | Scr Mat Mat Min Mat Combat Hostiles Destroyed 22 | . 8 . 8 6 Melee 2 | . . . 1 1 Guns 18 | . 8 . 7 3 Cannons 2 | . . . . 2 Classes Destroyed 8 | 3 3 . . 2 Worker 3 | 2 . . . 1 Tunneler 6 | 5 . . 1 . Recycler 3 | 1 1 . 1 . Watcher 2 | . 2 . . . Swarmer 9 | . 6 . 3 . Grunt 11 | . 2 . 5 4 Brawler 1 | . . . . 1 Sentry 1 | . . . . 1 Best Kill Streak 6 | 3 6 . 3 3 Combat Bots Only 4 | . 4 . 3 3 Max Kills in Single Turn 2 | 1 2 . 1 1 Gunslinging . | . . . . . Exploded . | . . . . . Melee 1 | . . . 1 1 Uniques/NPCs Destroyed . | . . . . . Combat | -11 -10 -9 -9 -8 -------- Run | Scr Mat Mat Min Mat Damage Taken 2519 | . 480 50 589 1400 Core 855 | . 116 23 158 558 Absorbed by Shields . | . . . . . Redirected to Shielding 55 | . . . 12 43 Regen/Repaired (Parts) 63 | . . . . 63 Core Remaining (%) 69 | 100 53 . 54 . Volleys Fired 108 | 17 31 3 47 10 Largest 2 | 2 2 1 2 2 Hottest 150 | 70 70 20 40 150 Shots Fired 168 | 34 61 3 56 14 Gun 160 | 34 61 3 56 6 Cannon 8 | . . . . 8 Launcher . | . . . . . Special . | . . . . . Kinetic 127 | 17 51 3 56 . Thermal 41 | 17 10 . . 14 Explosive . | . . . . . Electromagnetic . | . . . . . Robot Hit Streak 24 | 9 9 1 24 19 Robot Miss Streak 5 | 1 5 1 1 . Penetration Max . | . . . . . Secondary Targets 4 | . 4 . . . Max Gunslinging Chain 1 | . 1 . . . Shots Hit Robots 137 | 26 42 1 48 20 Core Hits 57 | 9 14 . 24 10 Critical Kills . | . . . . . Critical Parts Destroyed 3 | . . . 2 1 Critical Strikes 6 | 2 1 . 2 1 Burn 3 | 2 1 . . . Destroy 1 | . . . 1 . Smash 2 | . . . 1 1 Melee Attacks 9 | . 1 . 2 6 Impact 7 | . . . 1 6 Slashing . | . . . . . Piercing . | . . . . . Sneak Attacks 2 | . . . 1 1 Combat Hostiles . | . . . . . Follow-up Attacks . | . . . . . Damage Inflicted 1639 | 333 459 8 412 427 Guns 1269 | 333 459 8 366 103 Cannons 200 | . . . . 200 Explosions . | . . . . . Melee 160 | . . . 40 120 Ramming 10 | . . . 6 4 Kinetic 866 | 146 346 8 366 . Thermal 603 | 187 113 . . 303 Explosive . | . . . . . Electromagnetic . | . . . . . Impact 160 | . . . 40 120 Slashing . | . . . . . Piercing . | . . . . . Highest Corruption 1 | . . . . 1 Average Corruption 1 | . . . . 1 Corruption Purged . | . . . . . Corruption Blocked . | . . . . . Effects 3 | . . . . 3 Matter Fused 1 | . . . . 1 Heat Flow Errors 1 | . . . . 1 Data Loss (minor) 1 | . . . . 1 Overload Shots . | . . . . . Overflow Damage 62 | . . . 40 22 Projectiles . | . . . . . Explosions . | . . . . . Melee 62 | . . . 40 22 Knockbacks . | . . . . . Impact . | . . . . . Kinetic . | . . . . . Secondary . | . . . . . Self-Inflicted Damage 3 | . . . 3 . Shots . | . . . . . Rammed 1 | . . . 1 . Targets Rammed 4 | . . . 2 2 Kicked 3 | . . . 1 2 Crushed . | . . . . . Highest Temperature 204 | 27 76 1 15 204 Average Temperature 35 | 12 21 1 6 85 Received Heat Transfer 1539 | . 135 24 417 963 Siege Activations . | . . . . . Robots Corrupted . | . . . . . Combat Hostiles . | . . . . . Parts Fried . | . . . . . Impact Corruptions 3 | . . . 2 1 Robots Melted . | . . . . . Combat Hostiles . | . . . . . Parts Melted 2 | 1 . . . 1 Heat Transferred 1628 | 703 407 . . 518 Parts Sabotaged . | . . . . . Parts Stolen . | . . . . . Parts Stripped . | . . . . . Power Chain Reactions . | . . . . . Missiles Intercepted . | . . . . . Alert | -11 -10 -9 -9 -8 ------- Run | Scr Mat Mat Min Mat Peak Influence 245 | 40 236 157 241 245 Initial 90 | . 22 90 51 27 Average 101 | 17 98 114 125 111 Maximum Alert Level 1 | . 1 . 1 1 Low Security (%) 80 | 100 79 100 67 90 Level 1 19 | . 20 . 32 10 Level 2 . | . . . . . Level 3 . | . . . . . Level 4 . | . . . . . Level 5 . | . . . . . High Security . | . . . . . Max Security . | . . . . . Squads Dispatched 3 | . . . . 3 Investigation 1 | . . . . 1 Extermination . | . . . . . Reinforcement . | . . . . . Assault . | . . . . . Garrison 2 | . . . . 2 Intercept . | . . . . . Searches Triggered . | . . . . . Construction Impeded . | . . . . . Haulers Reinforced . | . . . . . Active Scanning Responses . | . . . . . Cargo Convoy Interrupts . | . . . . . Stealth | -11 -10 -9 -9 -8 --------- Run | Scr Mat Mat Min Mat Distress Signals 4 | . 1 2 . 1 Communications Jammed . | . . . . . Distress Signals . | . . . . . Times Spotted 66 | . 13 12 20 21 Peak Tracking Total 11 | . 5 11 6 10 Tactical Retreats 13 | . 1 1 4 7 Traps | -11 -10 -9 -9 -8 ------- Run | Scr Mat Mat Min Mat Traps Triggered 1 | . . . . 1 Indirectly . | . . . . . Trap Hack Attempts . | . . . . . Triggered . | . . . . . Disarmed . | . . . . . Reprogrammed . | . . . . . Reused . | . . . . . Traps Extracted . | . . . . . Installed . | . . . . . Triggered . | . . . . . Machines | -11 -10 -9 -9 -8 ---------- Run | Scr Mat Mat Min Mat Machines Disabled . | . . . . . Max in Single Turn . | . . . . . Machines Sabotaged . | . . . . . Garrisons Compromised . | . . . . . Overloaded Fab Kills . | . . . . . Hacking | -11 -10 -9 -9 -8 --------- Run | Scr Mat Mat Min Mat Machines Accessed 9 | . 3 2 . 4 Terminals 6 | . 2 2 . 2 Fabricators . | . . . . . Repair Stations 1 | . . . . 1 Recycling Units 1 | . 1 . . . Scanalyzers 1 | . . . . 1 Garrison Access . | . . . . . Total Hacks 26 | . 8 5 . 13 Successful 22 | . 8 2 . 12 Failed 4 | . . 3 . 1 Catastrophic . | . . . . . Database Lockouts . | . . . . . Manual . | . . . . . Terminals 17 | . 5 5 . 7 Fabricators . | . . . . . Repair Stations 4 | . . . . 4 Recycling Units 3 | . 3 . . . Scanalyzers 2 | . . . . 2 Garrison Access . | . . . . . Terminal Hacks 13 | . 5 2 . 6 Record 2 | . 2 . . . Prototype ID Bank 1 | . . . . 1 Emergency Access Points 2 | . 1 1 . . Alert Level 2 | . 1 . . 1 Unreport Threat 1 | . . . . 1 Locate Traps 1 | . 1 . . . Maintenance Status 1 | . . . . 1 Assault Status 1 | . . . . 1 Registered Components 1 | . . . . 1 Zone Layout 1 | . . 1 . . Fabricator Hacks . | . . . . . Repair Station Hacks 4 | . . . . 4 Scan Component 2 | . . . . 2 Repair 2 | . . . . 2 Recycling Unit Hacks 3 | . 3 . . . Recycle Component 1 | . 1 . . . Process 1 | . 1 . . . Retrieve Matter 1 | . 1 . . . Scanalyzer 2 | . . . . 2 Insert Component 1 | . . . . 1 Analyze 1 | . . . . 1 Garrison Access Hacks . | . . . . . Unauthorized Hacks . | . . . . . Terminals . | . . . . . Fabricators . | . . . . . Repair Stations . | . . . . . Recycling Units . | . . . . . Scanalyzers . | . . . . . Garrison Access . | . . . . . Data Cores Recovered . | . . . . . Used . | . . . . . Hacking Detections 5 | . . 2 . 3 Full Trace Events 2 | . . 1 . 1 Feedback Events . | . . . . . Feedback Blocked . | . . . . . Robot Schematics Acquired . | . . . . . Robots Built . | . . . . . Authchips . | . . . . . Time . | . . . . . Total Robot Build Rating . | . . . . . Part Schematics Acquired 1 | . . . . 1 Parts Built . | . . . . . Authchips . | . . . . . Time . | . . . . . Total Part Build Rating . | . . . . . Parts Repaired 2 | . . . . 2 Time 52 | . . . . 52 Parts Recycled 1 | . 1 . . . Recycled Matter 15 | . 15 . . . Retrieved Matter 15 | . 15 . . . Retrieved Components . | . . . . . Parts Scanalyzed 1 | . . . . 1 Part Schematics Acquired 1 | . . . . 1 Parts Damaged 1 | . . . . 1 Bothacking | -11 -10 -9 -9 -8 ------------ Run | Scr Mat Mat Min Mat Used RIF Installer . | . . . . . Robots Hacked 2 | . 1 . 1 . Non-combat 2 | . 1 . 1 . Combat . | . . . . . Robot Hacks Applied 2 | . 1 . 1 . parse_system 1 | . 1 . . . no_distress 1 | . . . 1 . Relay Couplers Released . | . . . . . Fabnet Peak Effective % . | . . . . . Robots Rewired . | . . . . . Allies Hacked . | . . . . . Hacks Repelled . | . . . . . Allies | -11 -10 -9 -9 -8 -------- Run | Scr Mat Mat Min Mat Total Allies 2 | . . . 2 . Largest Group 2 | . . . 2 . Highest-Rated Group 43 | . . . 43 . Highest-Rated Ally 31 | . . . 31 . Total Orders . | . . . . . Ally Attacks 15 | . . . 15 . Total Damage 292 | . . . 292 . Kills 3 | . . . 3 . Allies Corrupted . | . . . . . Allies Melted . | . . . . . Intel | -11 -10 -9 -9 -8 ------- Run | Scr Mat Mat Min Mat Robot Analysis Total . | . . . . . Derelict Logs Recovered 2 | . . . 2 . Drone Launches . | . . . . . Drone Recoveries . | . . . . . Exploration | -11 -10 -9 -9 -8 ------------- Run | Scr Mat Mat Min Mat Turns Passed 1841 | 258 388 67 698 430 Spaces Moved 1602 | 163 335 163 646 295 Core 52 | 15 7 . . 30 Treads . | . . . . . Legs 482 | 146 10 . 124 202 Wheels 34 | 2 32 . . . Hover 189 | . 189 . . . Flight 845 | . 97 163 522 63 Fastest Speed 35 | 50 37 37 37 35 Average Speed 84 | 113 73 37 79 116 Slowest Speed 200 | 120 125 37 200 195 Overloaded Moves . | . . . . . Propulsion Burnouts . | . . . . . Robots Hopped 1 | . . . . 1 Cave-ins Triggered . | . . . . . Exploration Rate (%) 36 | 9 46 25 71 33 Regions Visited 4 Branch Regions 1 Pre-discovered Areas . | . . . . . Known Exits Taken 1 | . . . 1 . Unknown Exits Taken 3 | 1 1 1 . . Scrap Searched 1 | . . . 1 . Spaces Dug . | . . . . . Terrain Destroyed . | . . . . . Melee . | . . . . . Projectile . | . . . . . AOE . | . . . . . Terrain Rammed . | . . . . . Walls Destroyed . | . . . . . Machines Disabled . | . . . . . Actions | -11 -10 -9 -9 -8 --------- Run | Scr Mat Mat Min Mat Total 1930 | 200 421 166 787 356 Wait 63 | . . . 48 15 Move 1596 | 162 334 162 645 293 Hop 1 | . . . . 1 Pick Up 55 | 10 17 1 14 13 Fast Attach 7 | 6 . . 1 . Attach 32 | 1 8 . 10 13 Detach 1 | . . . 1 . Swap 20 | 1 12 . 5 2 Drop 34 | 3 18 . 12 1 Fire 108 | 17 31 3 47 10 Melee 9 | . 1 . 2 6 Ram 1 | . . . 1 . Kick 3 | . . . 1 2 Crush . | . . . . . Escape Stasis . | . . . . . Rewire . | . . . . . Trap . | . . . . . Miscellaneous . | . . . . . Route ------- -11/Scrapyard -10/Materials (discovered 2 exits: *Mat / [*Min]) -9/Materials -9/Mines (discovered 3 exits: *Mat x2 / [*Exi]) -8/Materials History --------- Turn | Location | Event 14 | -11/Scrapyard | Discovered new exit (range 16) 259 | -11/Scrapyard | Entered Materials 317 | -10/Materials | Build established: Mutant 450 | -10/Materials | Discovered new exit (range 13) 558 | -10/Materials | Lost 3 parts (1p2n) 625 | -10/Materials | Discovered new exit (range 13) 647 | -10/Materials | Entered another Materials area 647 | -9/Materials | Evolved 2 slots: Utility x2 707 | -9/Materials | Discovered new exit (range 14) 714 | -9/Materials | Entered Mines 749 | -9/Mines | Identified exit to Materials 777 | -9/Mines | Discovered exit to Materials (range 14) 846 | -9/Mines | Deemed a non-threat by the Exiles lab entrance 846 | -9/Mines | Discovered new exit (range 5) 1412 | -9/Mines | Entered Materials 1412 | -8/Materials | Evolved 2 slots: Utility x2 1691 | -8/Materials | Garrison activated, responded to threat 1708 | -8/Materials | Core integrity fell below 50% 1730 | -8/Materials | Build established: Hacker-Mutant 1739 | -8/Materials | Lost 6 parts (1p2n2u1w) 1741 | -8/Materials | Repaired Utility Shielding 1767 | -8/Materials | Repaired Hammer? 1799 | -8/Materials | Core integrity fell below 20% 1842 | -8/Materials | Destroyed by G-47 Trooper with Particle Gun Last Messages --------------- Current Alert Level: 1-G [Achievement: Everything Is Under Control] >>Alert(Purge) Purged threat record, alert level lowered. 01745_ K-01 Serf cleans the Electrolysis Chamber. 01746_ Acquired Imp. Propulsion Shielding. 01748_ Acquired Imp. Light Armor Plating. 01750_ Acquired Hardlight Generator. 01767_ >> REPAIR: Completed Hammer? 01778_ System corrupted: Heat flow error (+189). 01803_ Critical hit (Burn: +37). 01805_ Hardlight Generator destroyed. 01807_ Structural Scanner destroyed. 01809_ Acquired Hvy. Particle Cannon. 01813_ Acquired Cesium-ion Thruster. 01816_ Acquired Hvy. Particle Cannon. 01819_ System corrupted: Matter fused (-6). 01821_ G-47 Trooper destroyed. 01836_ Aluminum Leg melted. 01836_ G-47 Trooper destroyed. Map ----- +----------------------------------------------------+ | ????????????????????????????????????????? | | ????????????????????????????????????????? | | ????????????????????????????????????????? | | ????#####???????????????????????????????? | | ????#####????###????????????????????????? | | ????## ??? ##????????????????????????? | | ????## "???? =##????????????????????????? | | ????## """"" ##????????????????????????? | | ????## """"" ##????????????????????????? | | ????## ##??############ ?????? | | ????## """"" ##??#################?????? | | ????## """"" !##??## ##?????? | | ????## """"" ##??## """ """ """ ######## | | ###### ###### """ """ """ ######## | | ######+###/######### """ """ """ # [ ## | | ## # / # =## | | ## """ # ######## ! # ## | | ## """ # ##################/### """ ## | | ## """ / ##????########## # """ ## | | ## # ##????## ? ##### # """ ## | | ## # ##????## T / ## | | ######### ######## ##### # ## | | ######### # = ##?###### # ## | | ???????## #= #??????### ## "!" # | | ???????## #gY/= !#??????### ## "R" # | | ???????## %/Yg=@ #???????## ## """ / | | ???????## #g! #??????? # ######## | | ???????## #! #??????? # ######## | | ???????## ########??????? # ##????## | | ???????## ##????????????? # ##????## | | ???????## # ????????????? # ##????## | | ???????## # ????????????? # ##????## | | ???????## + ????????????? # ??????## | | ???????## # ????????????? + ??????## | | ???????## # ????????????? # ??????## | | ???????## ???????????????## ??????## | | ???????# ??????????????????????????## | | ???????? ?????????????????????????? # | | ???????? T ?????????????????????????? # | | ????????? ? ???????????????????????????? | | ???????????????????????????????????????? | | ????????????????????????????????????????? | | ????????????????????????????????????????? | | ????????????????????????????????????????? | | ????????????????????????????????????????? | | ????????????????????????????????????????? | | ????????????????????????????????????????? | | ????????????????????????????????????????? | | ????????????????????????????????????????? | | ????????????????????????????????????????? | +----------------------------------------------------+ Best States ------------- Heat Dissipation 38 Energy Generation 14 Energy Capacity 280 Matter Stores 300 Matter Capacity 300 Sight Range 16 Terrain Scan Range 16 Terrain Scan Density 10 Armor Coverage 150 Resistance: KI 20 Resistance: TH 20 Resistance: EX 20 Resistance: EM 35 Resistance: I 20 Resistance: S 20 Resistance: P 20 Propulsion Shielding 66 Utility Shielding 33 Evasion (%) 63 Offensive Hacking 20 Item Schematics ----------------- Aluminum Leg | -8/Materials | Scanalyzed Robot Schematics ------------------ None Fabricated ------------ Nothing Alien Tech Used ----------------- None Achievements -------------- Everything Is Under Control Storm Trooper Challenges ------------ None Game ------ Seed TitaniumLatentWings Manual? 0 Play Time 00:53:31 Cumulative 6.2 hours Start 2022.04.19 @ 00:58:48 End 2022.04.19 @ 10:08:43 Sessions 3 Manual Loads 0 Difficulty Adventurer Special Mode None Game No. 5 Rogue 0 Adventurer 5 Explorer 0 Win Type - Total 0 Types 0/0/0/0/0/0/0/0/0 Lore% 5 Gallery% 11 Achievement% 9 Wizard Run 0 Options --------- ASCII 0 Keyboard 0 Movement Mouse Keybinds 0 Fullscreen 0 Font 18/TerminusBold Map View 183x50 Tactical HUD 1 Map Filters NONE Filters NONE Steam 1 RUN: 35b3a6a4-8fe1-48d0-af73-103a7e53bfe6